fUSD/lending_fUSD_20240925
["ID","MTS","AMOUNT","RATE_DAILY","PERIOD"]
[339118470,1727259081025,-500.0,0.00012899,2]
[339118471,1727259081035,-500.0,0.00012899,2]
[339118472,1727259081044,-283.42,0.00012899,2]
[339118473,1727259081053,-500.0,0.00012899,2]
[339118474,1727259081063,-500.0,0.00012899,2]
[339118475,1727259081072,-423.42,0.00012899,2]
[339118476,1727259081081,-500.0,0.00012899,2]
[339118477,1727259081090,-500.0,0.00012899,2]
[339118478,1727259081099,-207.38,0.00012899,2]
[339118479,1727259081108,-500.0,0.00012899,2]
[339118480,1727259081117,-500.0,0.00012899,2]
[339118481,1727259081127,-500.0,0.00012899,2]
[339118482,1727259081138,-500.0,0.00012899,2]
[339118483,1727259081148,-500.0,0.00012899,2]
[339118484,1727259081157,-500.0,0.00012899,2]
[339118485,1727259081166,-500.0,0.00012899,2]
[339118486,1727259081175,-321.09,0.00012899,2]
[339118487,1727259081186,-500.0,0.00012899,2]
[339118488,1727259081195,-500.0,0.00012899,2]
[339118489,1727259081204,-500.0,0.00012899,2]
[339118490,1727259081214,-500.0,0.00012899,2]
[339118491,1727259081223,-500.0,0.00012899,2]
[339118492,1727259081232,-500.0,0.00012899,2]
[339118493,1727259081242,-500.0,0.00012899,2]
[339118494,1727259081252,-279.07,0.00012899,2]
[339118495,1727259081262,-500.0,0.00012899,2]
[339118496,1727259081271,-500.0,0.00012899,2]
[339118497,1727259081281,-500.0,0.00012899,2]
[339118498,1727259081290,-500.0,0.00012899,2]
[339118499,1727259081300,-500.0,0.00012899,2]
[339118500,1727259081309,-500.0,0.00012899,2]
[339118501,1727259081318,-500.0,0.00012899,2]
[339118502,1727259081327,-500.0,0.00012899,2]
[339118503,1727259081337,-500.0,0.00012899,2]
[339118504,1727259081346,-236.82,0.00012899,2]
[339118505,1727259081355,-500.0,0.00012899,2]
[339118506,1727259081364,-500.0,0.00012899,2]
[339118507,1727259081373,-500.76260412,0.00012899,2]
[339118508,1727259081383,-500.0,0.00012899,2]
[339118509,1727259081392,-500.0,0.00012899,2]
[339118510,1727259081401,-500.0,0.00012899,2]
[339118511,1727259081410,-500.0,0.00012899,2]
[339118512,1727259081420,-500.0,0.00012899,2]
[339118513,1727259081429,-500.0,0.00012899,2]
[339118514,1727259081439,-500.0,0.00012899,2]
[339118515,1727259081450,-402.23,0.00012899,2]
[339118516,1727259081459,-500.0,0.00012899,2]
[339118517,1727259081469,-500.0,0.00012899,2]
[339118518,1727259081478,-500.0,0.00012899,2]
[339118519,1727259081487,-500.0,0.00012899,2]
[339118520,1727259081496,-500.0,0.00012899,2]
[339118521,1727259081505,-500.0,0.00012899,2]
[339118522,1727259081515,-500.0,0.00012899,2]
[339118523,1727259081524,-201.87595421,0.00012899,2]
[339118524,1727259081536,-500.0,0.00012899,2]
[339118525,1727259081545,-500.0,0.00012899,2]
[339118526,1727259081555,-500.0,0.00012899,2]
[339118527,1727259081564,-151.0,0.00012899,2]
[339118528,1727259081573,-500.0,0.00012899,2]
[339118529,1727259081582,-561.78,0.00012899,2]
[339118530,1727259081592,-500.0,0.00012899,2]
[339118531,1727259081601,-500.0,0.00012899,2]
[339118532,1727259081613,-500.0,0.00012899,2]
[339118533,1727259081622,-501.37850784,0.00012899,2]
[339118534,1727259081631,-500.0,0.00012899,2]
[339118535,1727259081640,-500.0,0.00012899,2]
[339118536,1727259081649,-500.0,0.00012899,2]
[339118537,1727259081658,-453.49124165,0.00012899,2]
[339118538,1727259081667,-500.0,0.00012899,2]
[339118539,1727259081676,-500.0,0.00012899,2]
[339118540,1727259081685,-489.79245628,0.00012899,2]
[339118541,1727259081695,-490.07854877,0.00012899,2]
[339118542,1727259081919,-9.92145123,0.00012899,2]
[339118543,1727259081930,-500.0,0.00012899,2]
[339118544,1727259081939,-500.0,0.00012899,2]
[339118545,1727259081952,-500.0,0.00012899,2]
[339118546,1727259081962,-500.0,0.00012899,2]
[339118547,1727259081971,-500.0,0.00012899,2]
[339118548,1727259081980,-500.0,0.00012899,2]
[339118549,1727259081989,-500.0,0.00012899,2]
[339118550,1727259081999,-500.0,0.00012899,2]
[339118551,1727259082008,-500.0,0.00012899,2]
[339118552,1727259082018,-500.0,0.00012899,2]
[339118553,1727259082027,-500.0,0.00012899,2]
[339118554,1727259082036,-500.0,0.00012899,2]
[339118555,1727259082045,-500.0,0.00012899,2]
[339118556,1727259082055,-500.0,0.00012899,2]
[339118557,1727259082065,-500.0,0.00012899,2]
[339118558,1727259082077,-500.0,0.00012899,2]
[339118559,1727259082087,-392.8043116,0.00012899,2]
[339118560,1727259082097,-461.22579706,0.00012899,2]
[339118561,1727259082108,-500.0,0.00012899,2]
[339118562,1727259082118,-500.0,0.00012899,2]
[339118563,1727259082128,-500.0,0.00012899,2]
[339118564,1727259082279,-500.0,0.00012899,2]
[339118565,1727259082288,-500.0,0.00012899,2]
[339118566,1727259082298,-500.0,0.00012899,2]
[339118567,1727259082307,-500.0,0.00012899,2]
[339118568,1727259082317,-500.0,0.00012899,2]
[339118569,1727259082326,-482.29,0.00012899,2]
[339118570,1727259082336,-500.0,0.00012899,2]
[339118571,1727259082345,-151.0,0.00012899,2]
[339118572,1727259082355,-500.0,0.00012899,2]
[339118573,1727259082364,-500.0,0.00012899,2]
[339118574,1727259082374,-500.0,0.00012899,2]
[339118575,1727259082383,-500.0,0.00012899,2]
[339118576,1727259082392,-500.0,0.00012899,2]
[339118577,1727259082402,-500.0,0.00012899,2]
[339118578,1727259082411,-500.0,0.00012899,2]
[339118579,1727259082420,-500.0,0.00012899,2]
[339118580,1727259082430,-500.0,0.00012899,2]
[339118581,1727259082439,-433.44,0.00012899,2]
[339118582,1727259082449,-500.0,0.00012899,2]
[339118583,1727259082459,-151.0,0.00012899,2]
[339118584,1727259082468,-500.0,0.00012899,2]
[339118585,1727259082477,-500.0,0.00012899,2]
[339118586,1727259082487,-500.0,0.00012899,2]
[339118587,1727259082496,-500.0,0.00012899,2]
[339118588,1727259082506,-442.38,0.00012899,2]
[339118589,1727259082515,-500.0,0.00012899,2]
[339118590,1727259082525,-500.0,0.00012899,2]
[339118591,1727259082536,-500.0,0.00012899,2]
[339118592,1727259082545,-500.0,0.00012899,2]
[339118593,1727259082554,-215.87405346,0.00012899,2]
[339118594,1727259082564,-500.0,0.00012899,2]
[339118595,1727259082573,-473.14,0.00012899,2]
[339118596,1727259082582,-500.0,0.00012899,2]
[339118597,1727259082592,-500.0,0.00012899,2]
[339118598,1727259082601,-296.34,0.00012899,2]
[339118599,1727259082612,-500.0,0.00012899,2]
[339118600,1727259082622,-500.0,0.00012899,2]
[339118601,1727259082631,-500.0,0.00012899,2]
[339118602,1727259082641,-500.0,0.00012899,2]
[339118603,1727259082651,-500.0,0.00012899,2]
[339118604,1727259082662,-500.0,0.00012899,2]
[339118605,1727259082672,-500.0,0.00012899,2]
[339118606,1727259082681,-500.0,0.00012899,2]
[339118607,1727259082691,-500.0,0.00012899,2]
[339118608,1727259082702,-180.5,0.00012899,2]
[339118609,1727259082711,-500.0,0.00012899,2]
[339118610,1727259082720,-500.0,0.00012899,2]
[339118611,1727259082730,-500.0,0.00012899,2]
[339118612,1727259082739,-500.0,0.00012899,2]
[339118613,1727259082748,-500.0,0.00012899,2]
[339118614,1727259082757,-500.0,0.00012899,2]
[339118615,1727259082766,-500.0,0.00012899,2]
[339118616,1727259082775,-500.0,0.00012899,2]
[339118617,1727259082784,-500.0,0.00012899,2]
[339118618,1727259082794,-500.0,0.00012899,2]
[339118619,1727259082804,-500.0,0.00012899,2]
[339118620,1727259082813,-500.0,0.00012899,2]
[339118621,1727259082823,-500.0,0.00012899,2]
[339118622,1727259082832,-500.0,0.00012899,2]
[339118623,1727259082841,-500.0,0.00012899,2]
[339118624,1727259082850,-500.0,0.00012899,2]
[339118625,1727259082859,-500.0,0.00012899,2]
[339118626,1727259082869,-478.91812118,0.00012899,2]
[339118627,1727259082878,-500.0,0.00012899,2]
[339118628,1727259082887,-500.0,0.00012899,2]
[339118629,1727259082897,-500.0,0.00012899,2]
[339118630,1727259082905,-500.0,0.00012899,2]
[339118631,1727259082916,-500.0,0.00012899,2]
[339118632,1727259082925,-500.0,0.00012899,2]
[339118633,1727259082934,-500.0,0.00012899,2]
[339118634,1727259082943,-500.0,0.00012899,2]
[339118635,1727259082952,-471.64764559,0.00012899,2]
[339118636,1727259082962,-500.0,0.00012899,2]
[339118637,1727259082972,-500.0,0.00012899,2]
[339118638,1727259082981,-500.0,0.00012899,2]
[339118639,1727259082991,-500.0,0.00012899,2]
[339118640,1727259083000,-500.0,0.00012899,2]
[339118641,1727259083009,-461.38,0.00012899,2]
[339118642,1727259083018,-500.0,0.00012899,2]
[339118643,1727259083027,-379.59,0.00012899,2]
[339118644,1727259083037,-47196.81282751,0.000129,2]
[339118645,1727259083047,-53048.50615932,0.000129,2]
[339118646,1727259083076,-500.0,0.00012897,2]
[339118647,1727259083086,-1240.74654837,0.000129,2]
[339118648,1727259144952,157.0,0.00021,60]
[339118650,1727259202370,776.28764787,0.000114,10]
[339118651,1727259412400,150.0,9.676e-05,2]
[339118652,1727259412423,80.41,9.676e-05,2]
[339118655,1727259730474,150.0,0.00011,2]
[339118656,1727259730495,150.0,0.00011,2]
[339118657,1727259730514,150.0,0.00011,2]
[339118658,1727259730536,150.0,0.00011,2]
[339118659,1727259730560,150.0,0.00011,2]
[339118660,1727259730580,150.0,0.00011,2]
[339118661,1727259730601,150.0,0.00011,2]
[339118662,1727259730624,2874.46231917,0.00011,2]
[339118663,1727259977857,150.0,0.00010959,2]
[339118664,1727259977879,31.34,0.00010959,2]
[339118666,1727260091105,150.0,9.825e-05,2]
[339118667,1727260091128,91.97,9.825e-05,2]
[339118689,1727260231532,-194.75826541,0.00011589,2]
[339118690,1727260231542,-300.0,0.00011593,2]
[339118691,1727260231552,-1000.0,0.00011594,2]
[339118692,1727260231561,-220.68,0.00011594,2]
[339118693,1727260231572,-237.76,0.00011594,2]
[339118694,1727260231582,-464.71,0.00011594,2]
[339118695,1727260231591,-1397.74,0.00011594,2]
[339118696,1727260231601,-702.91,0.00011686,2]
[339118697,1727260231611,-250.0,0.00011756,2]
[339118698,1727260231622,-202.0,0.0001193,2]
[339118699,1727260231633,-299.98656193,0.00012,2]
[339118700,1727260231642,-202.0,0.0001201,2]
[339118701,1727260231651,-241.97,0.00012088,2]
[339118702,1727260231662,-202.0,0.000121,2]
[339118703,1727260231671,-481.47762246,0.00012178,2]
[339118704,1727260231692,-234.00237754,0.00012178,2]
[339118705,1727260231702,-241.36,0.00012178,2]
[339118706,1727260231712,-80.90432723,0.0001219,2]
[339118707,1727260231771,-121.09567277,0.0001219,2]
[339118708,1727260231780,-202.0,0.0001228,2]
[339118709,1727260231789,-160.381514,0.00012287,2]
[339118710,1727260231799,-428.27,0.000123,2]
[339118711,1727260231809,-202.0,0.0001237,2]
[339118712,1727260231818,-202.0,0.0001246,2]
[339118713,1727260231827,-202.0,0.0001255,2]
[339118714,1727260231837,-202.0,0.0001264,2]
[339118715,1727260231846,-1226.08564917,0.00012699,2]
[339118716,1727260231857,-911.46,0.00012699,2]
[339118717,1727260231873,-131.79502423,0.00012699,2]
[339118718,1727260231883,-202.0,0.0001273,2]
[339118719,1727260231892,-420.0,0.00012731,2]
[339118720,1727260232087,-150.0,0.00012777,2]
[339118721,1727260232110,-1145.89,0.00012778,2]
[339118722,1727260232120,-1119.43719115,0.00012778,2]
[339118723,1727260232132,-749.820001,0.00012778,2]
[339118724,1727260232144,-1279.56080785,0.00012778,2]
[339118725,1727260232153,-799.826,0.00012778,2]
[339118726,1727260232162,-1911.0,0.00012778,2]
[339118727,1727260232172,-1081.0,0.00012778,2]
[339118728,1727260232182,-2013.71116158,0.00012778,2]
[339118731,1727260237765,-997.11861666,0.00012778,2]
[339118732,1727260237848,-2856.17022176,0.00012778,2]
[339118733,1727260237857,-1262.0,0.00012778,2]
[339118734,1727260237866,-448.0,0.00012778,2]
[339118735,1727260237876,-1420.0,0.00012778,2]
[339118736,1727260237885,-150.0,0.00012778,2]
[339118737,1727260237894,-625.0,0.00012778,2]
[339118738,1727260237903,-3867.09923577,0.00012778,2]
[339118739,1727260237915,-597.60113186,0.00012778,2]
[339118740,1727260237926,-2820.98483153,0.00012778,2]
[339118741,1727260237937,-6204.31480084,0.00012778,2]
[339118742,1727260237946,-933.0,0.00012778,2]
[339118743,1727260237956,-558.0,0.00012778,2]
[339118744,1727260237965,-150.0,0.00012778,2]
[339118745,1727260237974,-809.0,0.00012778,2]
[339118746,1727260237984,-912.905,0.00012778,2]
[339118747,1727260237993,-151.84654482,0.00012796,2]
[339118748,1727260238003,-151.84654476,0.00012797,2]
[339118749,1727260238012,-1854.0164,0.00012797,2]
[339118750,1727260238022,-151.84654476,0.00012797,2]
[339118751,1727260238032,-151.84654476,0.00012798,2]
[339118752,1727260238041,-151.84654476,0.00012799,2]
[339118753,1727260238052,-151.84654476,0.00012799,2]
[339118754,1727260238061,-159.53480383,0.000128,2]
[339118755,1727260238070,-35.27116724,0.000128,2]
[339118756,1727260238088,-282.82883276,0.000128,2]
[339118757,1727260238098,-279.00044932,0.000128,2]
[339118758,1727260238150,-718.01955068,0.000128,2]
[339118759,1727260238159,-151.84654476,0.000128,2]
[339118760,1727260238169,-167.96,0.000128,2]
[339118761,1727260238180,-163.70181205,0.000128,2]
[339118762,1727260238189,-163.70181205,0.000128,2]
[339118763,1727260238198,-163.70181205,0.000128,2]
[339118764,1727260238208,-163.70181205,0.000128,2]
[339118765,1727260238217,-163.70181205,0.000128,2]
[339118766,1727260238227,-163.70181205,0.000128,2]
[339118767,1727260238237,-163.70181205,0.000128,2]
[339118769,1727260238247,-163.70181205,0.000128,2]
[339118771,1727260238256,-163.70181205,0.000128,2]
[339118773,1727260238265,-164.2,0.000128,2]
[339118775,1727260238275,-161.15521959,0.000128,2]
[339118777,1727260238284,-161.15521959,0.000128,2]
[339118778,1727260238293,-161.15521959,0.000128,2]
[339118779,1727260238304,-161.15521959,0.000128,2]
[339118780,1727260238313,-161.15521959,0.000128,2]
[339118781,1727260238323,-161.15521959,0.000128,2]
[339118782,1727260238333,-161.15521959,0.000128,2]
[339118783,1727260238342,-161.15521959,0.000128,2]
[339118784,1727260238351,-161.15521959,0.000128,2]
[339118785,1727260238360,-161.15521959,0.000128,2]
[339118786,1727260238370,-161.15521959,0.000128,2]
[339118787,1727260238379,-161.15521959,0.000128,2]
[339118788,1727260238388,-161.65,0.000128,2]
[339118789,1727260238397,-152.0,0.00012809,3]
[339118790,1727260238407,-202.0,0.0001282,2]
[339118791,1727260238416,-177.48,0.00012832,2]
[339118792,1727260238425,-826.9230388,0.00012854,2]
[339118793,1727260238435,-152.0,0.00012864,4]
[339118794,1727260238444,-2697.90157878,0.0001287,2]
[339118795,1727260238453,-500.0,0.00012873,2]
[339118796,1727260238463,-500.0,0.00012873,2]
[339118797,1727260238472,-165.836326,0.00012876,2]
[339118798,1727260238481,-160.153296,0.00012876,2]
[339118799,1727260238490,-305.656518,0.00012876,2]
[339118800,1727260238499,-284.618,0.00012891,2]
[339118801,1727260238509,-8500.0,0.00012891,2]
[339118802,1727260238518,-8500.0,0.00012891,2]
[339118803,1727260238528,-161.86,0.00012893,2]
[339118804,1727260238537,-1239.1542905,0.00012894,2]
[339118805,1727260238546,-502.03619846,0.00012895,2]
[339118806,1727260238557,-768.09,0.00012895,2]
[339118807,1727260238567,-500.0,0.00012895,2]
[339118808,1727260238576,-500.0,0.00012895,2]
[339118809,1727260238586,-500.0,0.00012895,2]
[339118810,1727260238595,-500.0,0.00012895,2]
[339118811,1727260238604,-500.0,0.00012895,2]
[339118812,1727260238613,-500.0,0.00012895,2]
[339118813,1727260238622,-500.0,0.00012895,2]
[339118814,1727260238631,-500.0,0.00012895,2]
[339118815,1727260238640,-500.0,0.00012895,2]
[339118816,1727260238650,-500.0,0.00012895,2]
[339118817,1727260238659,-500.0,0.00012895,2]
[339118818,1727260238669,-500.0,0.00012895,2]
[339118819,1727260238678,-500.0,0.00012895,2]
[339118820,1727260238687,-500.0,0.00012895,2]
[339118821,1727260238697,-1681.67,0.00012895,2]
[339118822,1727260238706,-500.0,0.00012895,2]
[339118823,1727260238716,-500.0,0.00012895,2]
[339118824,1727260238726,-500.0,0.00012895,2]
[339118825,1727260238735,-500.0,0.00012895,2]
[339118826,1727260238744,-500.0,0.00012895,2]
[339118827,1727260238754,-500.0,0.00012895,2]
[339118828,1727260238764,-1503.44,0.00012895,2]
[339118829,1727260238773,-500.0,0.00012895,2]
[339118830,1727260238782,-500.0,0.00012895,2]
[339118831,1727260238791,-601.57,0.00012895,2]
[339118832,1727260238801,-500.0,0.00012895,2]
[339118833,1727260238811,-500.0,0.00012895,2]
[339118834,1727260238819,-500.0,0.00012895,2]
[339118835,1727260238829,-500.0,0.00012895,2]
[339118836,1727260238838,-500.0,0.00012895,2]
[339118837,1727260238848,-500.0,0.00012895,2]
[339118838,1727260238859,-500.0,0.00012895,2]
[339118839,1727260238869,-500.0,0.00012895,2]
[339118840,1727260238878,-527.7,0.00012895,2]
[339118841,1727260238888,-500.0,0.00012895,2]
[339118842,1727260238897,-500.0,0.00012895,2]
[339118843,1727260238907,-556.91,0.00012895,2]
[339118844,1727260238915,-500.0,0.00012895,2]
[339118845,1727260238925,-500.0,0.00012895,2]
[339118846,1727260238934,-500.0,0.00012895,2]
[339118847,1727260238943,-615.97,0.00012895,2]
[339118848,1727260238953,-500.0,0.00012895,2]
[339118849,1727260238962,-500.0,0.00012895,2]
[339118850,1727260238972,-500.0,0.00012895,2]
[339118851,1727260238982,-500.0,0.00012895,2]
[339118852,1727260238992,-500.0,0.00012895,2]
[339118853,1727260239002,-500.0,0.00012895,2]
[339118854,1727260239011,-500.0,0.00012895,2]
[339118855,1727260239023,-500.0,0.00012895,2]
[339118856,1727260239032,-590.69,0.00012895,2]
[339118857,1727260239042,-500.0,0.00012895,2]
[339118858,1727260239055,-500.0,0.00012895,2]
[339118859,1727260239066,-500.0,0.00012895,2]
[339118860,1727260239075,-500.0,0.00012895,2]
[339118861,1727260239084,-500.0,0.00012895,2]
[339118862,1727260239093,-1035.87,0.00012895,2]
[339118863,1727260239105,-5360.5332905,0.00012895,2]
[339118864,1727260239114,-500.0,0.00012896,2]
[339118865,1727260239123,-500.0,0.00012896,2]
[339118866,1727260239132,-500.0,0.00012896,2]
[339118867,1727260239141,-500.0,0.00012896,2]
[339118868,1727260239150,-500.0,0.00012896,2]
[339118869,1727260239159,-500.0,0.00012896,2]
[339118870,1727260239169,-768.09,0.00012896,2]
[339118871,1727260239180,-500.0,0.00012896,2]
[339118872,1727260239190,-500.0,0.00012896,2]
[339118873,1727260239200,-500.0,0.00012896,2]
[339118874,1727260239210,-500.0,0.00012896,2]
[339118875,1727260239220,-500.0,0.00012896,2]
[339118876,1727260239230,-500.0,0.00012896,2]
[339118877,1727260239239,-500.0,0.00012896,2]
[339118878,1727260239248,-500.0,0.00012896,2]
[339118879,1727260239258,-500.0,0.00012896,2]
[339118880,1727260239269,-500.0,0.00012896,2]
[339118881,1727260239279,-500.0,0.00012896,2]
[339118882,1727260239289,-500.0,0.00012896,2]
[339118883,1727260239300,-500.0,0.00012896,2]
[339118884,1727260239309,-500.0,0.00012896,2]
[339118885,1727260239318,-500.0,0.00012896,2]
[339118886,1727260239328,-500.0,0.00012896,2]
[339118887,1727260239337,-500.0,0.00012896,2]
[339118888,1727260239349,-500.0,0.00012896,2]
[339118889,1727260239359,-500.0,0.00012896,2]
[339118890,1727260239369,-500.0,0.00012896,2]
[339118891,1727260239380,-500.0,0.00012896,2]
[339118892,1727260239392,-500.0,0.00012896,2]
[339118893,1727260239402,-500.0,0.00012896,2]
[339118894,1727260239412,-500.0,0.00012896,2]
[339118895,1727260239422,-500.0,0.00012896,2]
[339118896,1727260239433,-500.0,0.00012896,2]
[339118897,1727260239443,-500.0,0.00012896,2]
[339118898,1727260239452,-500.0,0.00012896,2]
[339118899,1727260239461,-500.8067202,0.00012896,2]
[339118900,1727260239471,-500.0,0.00012896,2]
[339118901,1727260239480,-1681.67,0.00012896,2]
[339118902,1727260239490,-500.0,0.00012896,2]
[339118903,1727260239499,-500.0,0.00012896,2]
[339118904,1727260239507,-500.0,0.00012896,2]
[339118905,1727260239517,-500.0,0.00012896,2]
[339118906,1727260239525,-500.0,0.00012896,2]
[339118907,1727260239535,-500.0,0.00012896,2]
[339118908,1727260239545,-500.0,0.00012896,2]
[339118909,1727260239556,-500.0,0.00012896,2]
[339118910,1727260239566,-500.0,0.00012896,2]
[339118911,1727260239575,-500.0,0.00012896,2]
[339118912,1727260239584,-500.0,0.00012896,2]
[339118913,1727260239593,-500.0,0.00012896,2]
[339118914,1727260239603,-500.0,0.00012896,2]
[339118915,1727260239613,-500.0,0.00012896,2]
[339118916,1727260239622,-500.0,0.00012896,2]
[339118917,1727260239631,-500.0,0.00012896,2]
[339118918,1727260239640,-1503.44,0.00012896,2]
[339118919,1727260239650,-500.0,0.00012896,2]
[339118920,1727260239659,-500.0,0.00012896,2]
[339118921,1727260239668,-500.0,0.00012896,2]
[339118922,1727260239677,-500.0,0.00012896,2]
[339118923,1727260239686,-500.0,0.00012896,2]
[339118924,1727260239695,-601.57,0.00012896,2]
[339118925,1727260239704,-500.0,0.00012896,2]
[339118926,1727260239713,-2116.18,0.00012896,2]
[339118927,1727260239722,-500.0,0.00012896,2]
[339118928,1727260239732,-758.23,0.00012896,2]
[339118929,1727260239741,-500.0,0.00012896,2]
[339118930,1727260239750,-156.45,0.00012896,2]
[339118931,1727260239759,-500.0,0.00012896,2]
[339118932,1727260239769,-500.0,0.00012896,2]
[339118933,1727260239778,-500.0,0.00012896,2]
[339118934,1727260239787,-500.0,0.00012896,2]
[339118935,1727260239796,-500.0,0.00012896,2]
[339118936,1727260239807,-1487.95,0.00012896,2]
[339118937,1727260239816,-500.0,0.00012896,2]
[339118938,1727260239825,-500.0,0.00012896,2]
[339118939,1727260239835,-500.0,0.00012896,2]
[339118940,1727260239844,-500.0,0.00012896,2]
[339118941,1727260239854,-500.0,0.00012896,2]
[339118942,1727260239863,-763.57,0.00012896,2]
[339118944,1727260239872,-500.0,0.00012896,2]
[339118946,1727260239881,-500.0,0.00012896,2]
[339118948,1727260239891,-500.0,0.00012896,2]
[339118950,1727260239900,-160.12,0.00012896,2]
[339118952,1727260239909,-287.79,0.00012896,2]
[339118954,1727260239918,-500.0,0.00012896,2]
[339118956,1727260239927,-500.0,0.00012896,2]
[339118957,1727260240112,-645.91,0.00012896,2]
[339118958,1727260240123,-2102.08,0.00012896,2]
[339118959,1727260240132,-1430.69,0.00012896,2]
[339118960,1727260240141,-572.57,0.00012896,2]
[339118962,1727260240151,-500.0,0.00012896,2]
[339118963,1727260240160,-500.0,0.00012896,2]
[339118966,1727260240172,-500.0,0.00012896,2]
[339118968,1727260240185,-153.71,0.00012896,2]
[339118970,1727260240194,-500.0,0.00012896,2]
[339118972,1727260240203,-532.37,0.00012896,2]
[339118974,1727260240213,-633.97,0.00012896,2]
[339118976,1727260240222,-520.87,0.00012896,2]
[339118977,1727260240231,-500.0,0.00012896,2]
[339118979,1727260240240,-500.0,0.00012896,2]
[339118981,1727260240249,-500.0,0.00012896,2]
[339118983,1727260240257,-591.81,0.00012896,2]
[339118985,1727260240266,-500.0,0.00012896,2]
[339118987,1727260240275,-500.0,0.00012896,2]
[339118989,1727260240284,-500.0,0.00012896,2]
[339118991,1727260240294,-500.0,0.00012896,2]
[339118993,1727260240304,-625.4,0.00012896,2]
[339118994,1727260240313,-500.0,0.00012896,2]
[339118996,1727260240322,-500.0,0.00012896,2]
[339118999,1727260240334,-346.03,0.00012896,2]
[339119001,1727260240345,-500.0,0.00012896,2]
[339119003,1727260240355,-500.0,0.00012896,2]
[339119005,1727260240365,-601.09,0.00012896,2]
[339119007,1727260240374,-500.0,0.00012896,2]
[339119009,1727260240384,-500.0,0.00012896,2]
[339119011,1727260240396,-500.0,0.00012896,2]
[339119013,1727260240406,-500.0,0.00012896,2]
[339119015,1727260240415,-500.0,0.00012896,2]
[339119017,1727260240424,-500.0,0.00012896,2]
[339119019,1727260240434,-500.0,0.00012896,2]
[339119021,1727260240444,-500.0,0.00012896,2]
[339119024,1727260240454,-500.0,0.00012896,2]
[339119026,1727260240463,-1035.87,0.00012896,2]
[339119027,1727260240472,-678.49,0.00012896,2]
[339119030,1727260240483,-500.0,0.00012896,2]
[339119032,1727260240492,-500.0,0.00012896,2]
[339119034,1727260240501,-500.0,0.00012896,2]
[339119035,1727260240510,-500.0,0.00012896,2]
[339119037,1727260240519,-500.0,0.00012896,2]
[339119039,1727260240528,-500.0,0.00012896,2]
[339119041,1727260240537,-500.0,0.00012896,2]
[339119043,1727260240546,-500.0,0.00012896,2]
[339119046,1727260240559,-500.0,0.00012896,2]
[339119047,1727260240567,-500.0,0.00012896,2]
[339119049,1727260240576,-500.0,0.00012896,2]
[339119051,1727260240586,-500.0,0.00012896,2]
[339119053,1727260240595,-500.0,0.00012896,2]
[339119055,1727260240604,-500.0,0.00012896,2]